Cogmind - Beta 10.2 @@@ ROGUE MODE // 2021.04.13 @ 13:28:29 Player: Midas Result: Destroyed by G-47 Trooper with Particle Gun Performance ------------- Evolutions (2) 1000 Regions Visited (7) 1400 Robots Destroyed (1) 5 Value Destroyed (2) 2 Prototype IDs (1) 20 Alien Tech Used (0) 0 Bonus (547) 547 TOTAL SCORE: 2974 Bonus ------- Pacifist 564 Follower Combat Kills 21 Friendly Fire -38 Cogmind --------- Core Integrity 0/550 Matter 300/300 Energy 98/100 System Corruption 0% Temperature Cool (9) Movement Core (50) Location -8/Materials Parts ------- > --- POWER (2) -------- (None) > --- PROPULSION (4) --- (None) > --- UTILITY (3) ------ (None) > --- WEAPON (2) ------- (None) > --- INVENTORY (4) ---- Light Treads Aluminum Leg Aluminum Leg Light Assault Rifle Peak State ------------ > --- POWER ------------ Ion Engine > --- PROPULSION ------- Flight Unit Flight Unit Improved Flight Unit > --- UTILITY ---------- (None) > --- WEAPON ----------- Mining Laser > --- INVENTORY -------- Light Treads Aluminum Leg Aluminum Leg Light Assault Rifle [Rating: 7] Favorites ----------- Power Ion Engine Engine Ion Engine Propulsion Flight Unit Leg Aluminum Leg Flight Unit Flight Unit Utility Small Storage Unit Storage Small Storage Unit Weapon EM Pulse Gun Energy Gun EM Pulse Gun Special Weapon Mining Laser Build | -11 -10 -10 -9 -9 -9 -8 -8 ------- Run | Scr Mat Min Mat Min Exi Min Mat Slots Evolved 4 | . . . 2 . . . 2 Power 1 | . . . . . . . 1 Propulsion 2 | . . . 1 . . . 1 Utility 1 | . . . 1 . . . . Weapon . | . . . . . . . . Parts Attached 9 | . 5 3 1 . . . . Power 1 | . 1 . . . . . . Engine 1 | . 1 . . . . . . Core . | . . . . . . . . Reactor . | . . . . . . . . Propulsion 5 | . 2 2 1 . . . . Treads . | . . . . . . . . Leg 2 | . 2 . . . . . . Wheel . | . . . . . . . . Hover . | . . . . . . . . Flight 3 | . . 2 1 . . . . Utility . | . . . . . . . . Device . | . . . . . . . . Storage . | . . . . . . . . Processor . | . . . . . . . . Hackware . | . . . . . . . . Protection . | . . . . . . . . Artifact . | . . . . . . . . Weapon 3 | . 2 1 . . . . . Energy Gun 2 | . 2 . . . . . . Energy Cannon . | . . . . . . . . Ballistic Gun . | . . . . . . . . Ballistic Cannon . | . . . . . . . . Launcher . | . . . . . . . . Special Weapon 1 | . . 1 . . . . . Impact Weapon . | . . . . . . . . Slashing Weapon . | . . . . . . . . Piercing Weapon . | . . . . . . . . Special Melee Weapon . | . . . . . . . . Unidentified Prototypes 1 | . . . 1 . . . . Parts Lost 5 | . . . 1 . . 3 1 Power 1 | . . . . . . 1 . Propulsion 3 | . . . . . . 2 1 Utility . | . . . . . . . . Weapon 1 | . . . 1 . . . . Highest Loss Streak 2 | . . . 1 . . 2 1 Average Slot Usage (%) 48 | . 78 73 51 44 44 19 7 Engine 10 | . 14 14 11 11 11 8 . Leg 7 | . 26 15 . . . . . Flight 16 | . . 11 32 33 33 11 7 Storage 4 | . 14 8 . . . . . Energy Gun 5 | . 22 10 . . . . . Special Weapon 4 | . . 12 8 . . . . Naked Turns 18 | . . . . . . . 18 Heaviest Build 13 | 13 13 13 6 5 5 5 . Greatest Support 20 | 20 20 20 8 8 8 8 3 Greatest Overweight (x) 2 | . 1 2 . . . 1 . Average Overweight (x) . | . . . . . . . . Largest Inventory Capacity 6 | 6 6 6 4 4 4 4 4 Average Capacity 4 | 6 6 5 4 4 4 4 4 Most Carried 6 | 6 6 6 4 4 4 4 4 Average Carried 4 | 6 6 5 4 4 4 4 4 Final Capacity 6 | 6 6 4 4 4 4 4 4 Final Carried 6 | 6 6 4 4 4 4 4 4 Class Distribution -------------------- 100% | Mutant Dominant Class ---------------- Mutant | -10/Materials Mutant | -10/Mines Mutant | -9/Materials Mutant | -9/Mines Mutant | -9/Exiles Mutant | -8/Mines Mutant | -8/Materials Resources | -11 -10 -10 -9 -9 -9 -8 -8 ----------- Run | Scr Mat Min Mat Min Exi Min Mat Matter Collected 265 | 200 . 42 . . . 21 2 Remotely . | . . . . . . . . Salvage Created 55 | . . . . . . . 55 Parts 5 | . . . . . . . 5 Haulers Intercepted 1 | . . . . . . . 1 Recyclers Shooed . | . . . . . . . . Parts Field Recycled . | . . . . . . . . Retrieved Matter . | . . . . . . . . Parts Self-Destructed . | . . . . . . . . Prevented . | . . . . . . . . Kills | -11 -10 -10 -9 -9 -9 -8 -8 ------- Run | Scr Mat Min Mat Min Exi Min Mat Combat Hostiles Destroyed . | . . . . . . . . Classes Destroyed 1 | . . . . . . . 1 Hauler 1 | . . . . . . . 1 Best Kill Streak 1 | . . . . . . . 1 Combat Bots Only . | . . . . . . . . Max Kills in Single Turn 1 | . . . . . . . 1 Gunslinging . | . . . . . . . . Exploded . | . . . . . . . . Melee . | . . . . . . . . Uniques/NPCs Destroyed . | . . . . . . . . Combat | -11 -10 -10 -9 -9 -9 -8 -8 -------- Run | Scr Mat Min Mat Min Exi Min Mat Damage Taken 915 | . . 40 105 . . 165 605 Core 717 | . . 10 44 . . 103 560 Absorbed by Shields . | . . . . . . . . Core Remaining (%) 86 | 100 . 96 . . . 63 . Volleys Fired 10 | . . 4 6 . . . . Largest 2 | . . 2 1 . . . . Hottest 140 | . . 140 100 . . . . Shots Fired 12 | . . 6 6 . . . . Gun 2 | . . 2 . . . . . Cannon . | . . . . . . . . Launcher . | . . . . . . . . Special 10 | . . 4 6 . . . . Kinetic . | . . . . . . . . Thermal 10 | . . 4 6 . . . . Explosive . | . . . . . . . . Electromagnetic 2 | . . 2 . . . . . Robot Hit Streak 1 | . . 1 . . . . . Robot Miss Streak 3 | . . 3 . . . . . Penetration Max . | . . . . . . . . Secondary Targets . | . . . . . . . . Shots Hit Robots 1 | . . 1 . . . . . Core Hits 2 | . . 1 . . . . 1 Critical Hits . | . . . . . . . . Critical Kills . | . . . . . . . . Critical Parts Destroyed . | . . . . . . . . Melee Attacks . | . . . . . . . . Impact . | . . . . . . . . Slashing . | . . . . . . . . Piercing . | . . . . . . . . Sneak Attacks . | . . . . . . . . Combat Hostiles . | . . . . . . . . Follow-up Attacks . | . . . . . . . . Damage Inflicted 64 | . . 48 . . . . 16 Guns 24 | . . 24 . . . . . Cannons . | . . . . . . . . Explosions . | . . . . . . . . Melee . | . . . . . . . . Ramming 16 | . . . . . . . 16 Kinetic . | . . . . . . . . Thermal 24 | . . 24 . . . . . Explosive . | . . . . . . . . Electromagnetic 24 | . . 24 . . . . . Impact . | . . . . . . . . Slashing . | . . . . . . . . Piercing . | . . . . . . . . Highest Corruption . | . . . . . . . . Average Corruption . | . . . . . . . . Corruption Purged . | . . . . . . . . Overload Shots . | . . . . . . . . Overflow Damage . | . . . . . . . . Projectiles . | . . . . . . . . Explosions . | . . . . . . . . Melee . | . . . . . . . . Knockbacks . | . . . . . . . . Impact . | . . . . . . . . Kinetic . | . . . . . . . . Secondary . | . . . . . . . . Self-Inflicted Damage 8 | . . . . . . . 8 Shots . | . . . . . . . . Rammed 1 | . . . . . . . 1 Targets Rammed 1 | . . . . . . . 1 Kicked . | . . . . . . . . Crushed . | . . . . . . . . Highest Temperature 245 | . . 40 245 . . . . Average Temperature 51 | . . 22 67 . . . . Received Heat Transfer 312 | . . . 33 . . 90 189 Siege Activations . | . . . . . . . . Robots Corrupted . | . . . . . . . . Combat Hostiles . | . . . . . . . . Parts Fried . | . . . . . . . . Impact Corruptions . | . . . . . . . . Robots Melted . | . . . . . . . . Combat Hostiles . | . . . . . . . . Parts Melted . | . . . . . . . . Heat Transferred 50 | . . 50 . . . . . Parts Sabotaged . | . . . . . . . . Parts Stolen . | . . . . . . . . Parts Stripped . | . . . . . . . . Power Chain Reactions . | . . . . . . . . Missiles Intercepted . | . . . . . . . . Alert | -11 -10 -10 -9 -9 -9 -8 -8 ------- Run | Scr Mat Min Mat Min Exi Min Mat Peak Influence 177 | . . 74 63 24 . . 177 Initial 28 | . . . 28 24 . . . Average 36 | . . 44 35 24 . . 70 Maximum Alert Level . | . . . . . . . . Low Security (%) 100 | 100 100 100 100 100 . 100 100 Level 1 . | . . . . . . . . Level 2 . | . . . . . . . . Level 3 . | . . . . . . . . Level 4 . | . . . . . . . . Level 5 . | . . . . . . . . High Security . | . . . . . . . . Max Security . | . . . . . . . . Squads Dispatched 2 | . . . . . . . 2 Investigation . | . . . . . . . . Extermination . | . . . . . . . . Reinforcement 2 | . . . . . . . 2 Assault . | . . . . . . . . Garrison . | . . . . . . . . Intercept . | . . . . . . . . Construction Impeded . | . . . . . . . . Haulers Reinforced . | . . . . . . . . Stealth | -11 -10 -10 -9 -9 -9 -8 -8 --------- Run | Scr Mat Min Mat Min Exi Min Mat Distress Signals 3 | . . . . . . . 3 Communications Jammed . | . . . . . . . . Distress Signals . | . . . . . . . . Times Spotted 38 | . 1 3 3 . . 6 25 Peak Tracking Total 18 | . 2 3 5 . . 6 18 Tactical Retreats 4 | . . . 1 . . . 3 Traps | -11 -10 -10 -9 -9 -9 -8 -8 ------- Run | Scr Mat Min Mat Min Exi Min Mat Traps Triggered 2 | . 2 . . . . . . Indirectly . | . . . . . . . . Trap Hack Attempts . | . . . . . . . . Triggered . | . . . . . . . . Disarmed . | . . . . . . . . Reprogrammed . | . . . . . . . . Reused . | . . . . . . . . Traps Extracted . | . . . . . . . . Installed . | . . . . . . . . Triggered . | . . . . . . . . Machines | -11 -10 -10 -9 -9 -9 -8 -8 ---------- Run | Scr Mat Min Mat Min Exi Min Mat Machines Disabled . | . . . . . . . . Max in Single Turn . | . . . . . . . . Machines Sabotaged . | . . . . . . . . Garrisons Compromised . | . . . . . . . . Overloaded Fab Kills . | . . . . . . . . Fab Network Shutdowns . | . . . . . . . . Hacking | -11 -10 -10 -9 -9 -9 -8 -8 --------- Run | Scr Mat Min Mat Min Exi Min Mat Machines Accessed 1 | . . . . . 1 . . Terminals . | . . . . . . . . Fabricators . | . . . . . . . . Repair Stations . | . . . . . . . . Recycling Units . | . . . . . . . . Scanalyzers . | . . . . . . . . Garrison Access . | . . . . . . . . Total Hacks 23 | . . . . . 23 . . Successful 23 | . . . . . 23 . . Failed . | . . . . . . . . Catastrophic . | . . . . . . . . Database Lockouts . | . . . . . . . . Manual . | . . . . . . . . Terminals . | . . . . . . . . Fabricators . | . . . . . . . . Repair Stations . | . . . . . . . . Recycling Units . | . . . . . . . . Scanalyzers . | . . . . . . . . Garrison Access . | . . . . . . . . Terminal Hacks 23 | . . . . . 23 . . Record 23 | . . . . . 23 . . Fabricator Hacks . | . . . . . . . . Repair Station Hacks . | . . . . . . . . Recycling Unit Hacks . | . . . . . . . . Scanalyzer . | . . . . . . . . Garrison Access Hacks . | . . . . . . . . Unauthorized Hacks . | . . . . . . . . Terminals . | . . . . . . . . Fabricators . | . . . . . . . . Repair Stations . | . . . . . . . . Recycling Units . | . . . . . . . . Scanalyzers . | . . . . . . . . Garrison Access . | . . . . . . . . Data Cores Recovered . | . . . . . . . . Used . | . . . . . . . . Hacking Detections . | . . . . . . . . Full Trace Events . | . . . . . . . . Feedback Events . | . . . . . . . . Feedback Blocked . | . . . . . . . . Robot Schematics Acquired . | . . . . . . . . Robots Built . | . . . . . . . . Matter . | . . . . . . . . Time . | . . . . . . . . Total Robot Build Rating . | . . . . . . . . Part Schematics Acquired . | . . . . . . . . Parts Built . | . . . . . . . . Matter . | . . . . . . . . Time . | . . . . . . . . Total Part Build Rating . | . . . . . . . . Parts Repaired . | . . . . . . . . Time . | . . . . . . . . Parts Recycled . | . . . . . . . . Recycled Matter . | . . . . . . . . Retrieved Matter . | . . . . . . . . Retrieved Components . | . . . . . . . . Parts Scanalyzed . | . . . . . . . . Part Schematics Acquired . | . . . . . . . . Parts Damaged . | . . . . . . . . Bothacking | -11 -10 -10 -9 -9 -9 -8 -8 ------------ Run | Scr Mat Min Mat Min Exi Min Mat Used RIF Installer . | . . . . . . . . Robots Hacked . | . . . . . . . . Non-combat . | . . . . . . . . Combat . | . . . . . . . . Robot Hacks Applied . | . . . . . . . . Relay Couplers Released . | . . . . . . . . Robots Rewired . | . . . . . . . . Allies Hacked . | . . . . . . . . Hacks Repelled . | . . . . . . . . Allies | -11 -10 -10 -9 -9 -9 -8 -8 -------- Run | Scr Mat Min Mat Min Exi Min Mat Total Allies 1 | . . 1 . . . . . Largest Group 1 | . . 1 . . . . . Highest-Rated Group 31 | . . 31 . . . . . Highest-Rated Ally 31 | . . 31 . . . . . Total Orders . | . . . . . . . . Ally Attacks 6 | . . 6 . . . . . Total Damage 106 | . . 106 . . . . . Kills 3 | . . 3 . . . . . Allies Corrupted . | . . . . . . . . Allies Melted . | . . . . . . . . Intel | -11 -10 -10 -9 -9 -9 -8 -8 ------- Run | Scr Mat Min Mat Min Exi Min Mat Robot Analysis Total . | . . . . . . . . Derelict Logs Recovered 1 | . . 1 . . . . . Drone Launches . | . . . . . . . . Drone Recoveries . | . . . . . . . . Exploration | -11 -10 -10 -9 -9 -9 -8 -8 ------------- Run | Scr Mat Min Mat Min Exi Min Mat Turns Passed 623 | 3 79 164 108 6 107 47 109 Spaces Moved 1009 | 3 60 213 158 17 288 54 216 Core 270 | . 1 . . . . 53 216 Treads . | . . . . . . . . Legs 101 | 3 59 39 . . . . . Wheels . | . . . . . . . . Hover . | . . . . . . . . Flight 638 | . . 174 158 17 288 1 . Fastest Speed 37 | 120 100 37 37 37 37 37 50 Average Speed 51 | 120 120 53 37 37 37 86 50 Slowest Speed 200 | 120 150 200 37 37 37 100 50 Overloaded Moves . | . . . . . . . . Propulsion Burnouts . | . . . . . . . . Robots Hopped 3 | . . 3 . . . . . Cave-ins Triggered . | . . . . . . . . Exploration Rate (%) 27 | 2 15 48 19 6 70 23 37 Regions Visited 7 Branch Regions 4 Pre-discovered Areas 1 | . . . . . 1 . . Known Exits Taken . | . . . . . . . . Unknown Exits Taken 7 | 1 1 1 1 1 1 1 . Scrap Searched 1 | . . . . . . 1 . Spaces Dug 8 | . . 2 6 . . . . Terrain Destroyed 9 | . . 3 6 . . . . Melee . | . . . . . . . . Projectile 9 | . . 3 6 . . . . AOE . | . . . . . . . . Terrain Rammed . | . . . . . . . . Walls Destroyed . | . . . . . . . . Machines Disabled . | . . . . . . . . Actions | -11 -10 -10 -9 -9 -9 -8 -8 --------- Run | Scr Mat Min Mat Min Exi Min Mat Total 1073 | 2 64 246 188 16 287 53 217 Wait 47 | . . 23 24 . . . . Move 997 | 2 59 207 157 16 287 53 216 Hop 2 | . . 2 . . . . . Pick Up . | . . . . . . . . Fast Attach 9 | . 5 3 1 . . . . Attach . | . . . . . . . . Detach 2 | . . 2 . . . . . Swap . | . . . . . . . . Drop 5 | . . 5 . . . . . Fire 10 | . . 4 6 . . . . Melee . | . . . . . . . . Ram 1 | . . . . . . . 1 Kick . | . . . . . . . . Crush . | . . . . . . . . Escape Stasis . | . . . . . . . . Rewire . | . . . . . . . . Trap . | . . . . . . . . Miscellaneous . | . . . . . . . . Route ------- -11/Scrapyard -10/Materials -10/Mines -9/Materials -9/Mines -9/Exiles -8/Mines -8/Materials History --------- Turn | Location | Event 1 | -11/Scrapyard | Discovered new exit (range 1) 4 | -11/Scrapyard | Entered Materials 74 | -10/Materials | Discovered new exit (range 8) 83 | -10/Materials | Entered Mines 86 | -10/Mines | Received a Mining Laser from a helpful Derelict 235 | -10/Mines | Learned 2 Materials zone layouts 245 | -10/Mines | Discovered new exit (range 3) 247 | -10/Mines | Entered Materials 247 | -9/Materials | Evolved 2 slots: Propulsion x1, Utility x1 309 | -9/Materials | Build established: Mutant 336 | -9/Materials | Discovered new exit (range 13) 355 | -9/Materials | Entered Mines 360 | -9/Mines | Deemed a non-threat by the Exiles lab entrance 360 | -9/Mines | Discovered new exit (range 5) 361 | -9/Mines | Entered Exiles 371 | -9/Exiles | Met 8R-AWN 379 | -9/Exiles | Met EX-HEX 393 | -9/Exiles | Met EX-DEC 400 | -9/Exiles | Visited The Gauntlet 439 | -9/Exiles | Learned location of Zion (-6) 463 | -9/Exiles | Discovered new exit (range 14) 468 | -9/Exiles | Entered Mines 511 | -8/Mines | Discovered new exit (range 10) 515 | -8/Mines | Entered Materials 515 | -8/Materials | Evolved 2 slots: Power x1, Propulsion x1 594 | -8/Materials | Core integrity fell below 50% 614 | -8/Materials | Core integrity fell below 20% 624 | -8/Materials | Destroyed by G-47 Trooper with Particle Gun Last Messages --------------- GOAL=ESCAPE 00516_ O-16 Technician: "IFF HANDSHAKE FAILED. SECURING TERMINAL." 00516_ O-16 Technician uses terminal to summon reinforcements. 00516_ ALERT: Hostiles spotted, dispatching reinforcements to Terminal M006. 00516_ O-16 Technician locks terminal. 00521_ W-25 Informer sends out distress signal. 00554_ C-30 ARC bursts open, deploying its payload. 00554_ L-31 Rogue unfolds itself. 00554_ G-47 Trooper unfolds itself. 00556_ K-01 Serf collects debris. 00567_ W-25 Informer sends out distress signal. 00574_ K-01 Serf collects debris. 00580_ O-16 Technician: "IFF HANDSHAKE FAILED. SECURING TERMINAL." 00581_ ALERT: Hostiles spotted, dispatching reinforcements to Terminal M003. 00606_ Faulty Imp. Flight Unit destroyed. 00613_ Scanalyzer disabled. 00621_ Slammed into A-02 Transporter. 00621_ A-02 Transporter destroyed. 00621_ R-06 Scavenger collects Prototype Ballistic Gun. 00622_ Acquired 2 matter. Map ----- +----------------------------------------------------+ | ??# #??????????# ## #???######## | | # #??????????# ## #??????????? | | + +??????????# ## #??????????? | | [! # #??????????# ## #??????????? | | ! ??# #??????????# ## #??????????? | | ########## #########??# ## #??????????? | | ## #??????????? | | ## #??????????? | | ###########??????????? | | ######################### #????????????????????? | | ????????????????????????# #????????????????????? | | ????????????????????????? g#????????????????????? | | ##############??????????# ##???????????????????? | | #?????????? k #???????????????????? | | #?????????? a #???????????????????? | | #?????????? #???????????????????? | | ##+####### #?????????? a #???????????????????? | | # T #?# #?????????? #???????????????????? | | # #?# ############ #????????????????????? | | # #?# ## ]! !#g #????????????????????? | | # #?# ## ! "" #[g #????????????????????? | | # #?# ##[ G"[+%! #????????????????????? | | # """ ### ## ""*[#[ #????????????????????? | | # """ ## # """ =# #????????????????????? | | # """ ## # """ # #####+???????????????? | | # ## / """ #@ o ????????? | | "???## # # ????????? | | # "????# ##### ##### ????????? | | # "???####/#####?###???######## #####?????????? | | # ????# "" #???????????????? #?????????????? | | ?##????# "S #????????????????? #?????????????? | | ???????# "" #??????????????????#?????????????? | | ???????# #????????????????????????????????? | | ???????# #????????????????????????????????? | | ???????#""" #????????????????????????????????? | | ???????#""" #????????????????????????????????? | | ???????#""" ! #????????????????????????????????? | | ???????# #????????????????????????????????? | | ???????##########????????????????????????????????? | | ?????????????????????????????????????????????????? | | ?????????????????????????????????????????????????? | | ?????????????????????????????????????????????????? | | | | | | | | | | | | | | | | | +----------------------------------------------------+ Best States ------------- Heat Dissipation 31 Energy Generation 10 Energy Capacity 250 Matter Stores 300 Matter Capacity 300 Sight Range 16 Terrain Scan Density 10 Evasion (%) 62 Item Schematics ----------------- None Robot Schematics ------------------ None Fabricated ------------ Nothing Alien Tech Used ----------------- None Achievements -------------- None Challenges ------------ None Game ------ Seed MomentumImpulseCorpse Manual? 0 Play Time 00:16:01 Cumulative 22.9 hours Start 2021.04.13 @ 13:13:50 End 2021.04.13 @ 13:28:29 Sessions 1 Manual Loads 0 Difficulty Rogue Special Mode None Game No. 31 Rogue 16 Adventurer 15 Explorer 0 Win Type - Total 0 Types 0/0/0/0/0/0/0/0/0 Lore% 18 Gallery% 28 Achievement% 19 Wizard Run 0 Options --------- ASCII 0 Keyboard 0 Movement Mouse Keybinds 0 Fullscreen 0 Font 20/SmallcapsGlow Map View 113x50 Tactical HUD 1 Map Filters NONE Filters NONE Steam 1 RUN: 7da1a0bf-d0af-4706-bd61-27d16342b864